fUSD/lending_fUSD_20240717
["ID","MTS","AMOUNT","RATE_DAILY","PERIOD"]
[332446235,1721189445514,-150.62825954,0.00023304,2]
[332446236,1721189445523,-166.66666667,0.00023312,2]
[332446237,1721189445536,-152.38095238,0.0002333,2]
[332446238,1721189445555,-578.44312975,0.00023332,2]
[332446239,1721189445569,-578.44312975,0.00023345,2]
[332446240,1721189445584,-387.56629976,0.00023348,2]
[332446241,1721189445601,-591.35,0.00023386,2]
[332446242,1721189445618,-282.49712453,0.00023403,2]
[332446243,1721189445631,-222.78721591,0.00023537,2]
[332446244,1721189445646,-222.78721591,0.00023552,2]
[332446245,1721189445661,-444.25758336,0.00023583,2]
[332446246,1721189445677,-578.44312975,0.00023588,2]
[332446247,1721189445693,-150.86922992,0.00023592,2]
[332446248,1721189445710,-387.56629976,0.00023599,2]
[332446249,1721189445725,-222.78721591,0.00023608,2]
[332446250,1721189445740,-166.66666668,0.00023624,2]
[332446251,1721189445754,-150.0,0.00023648,2]
[332446252,1721189445771,-166.66666667,0.0002365,2]
[332446253,1721189445783,-151.94736869,0.00023692,2]
[332446254,1721189445798,-578.44312975,0.00023693,2]
[332446255,1721189445813,-1011.16,0.000237,2]
[332446256,1721189445824,-318.32,0.000237,2]
[332446257,1721189445839,-222.78721591,0.00023701,2]
[332446258,1721189445851,-266.74,0.00023739,2]
[332446259,1721189445863,-387.56629976,0.00023753,2]
[332446260,1721189445876,-166.66666667,0.00023783,2]
[332446261,1721189445891,-387.56629976,0.00023833,2]
[332446262,1721189445907,-151.76006347,0.00023837,2]
[332446263,1721189445921,-155.17415961,0.00023894,2]
[332446264,1721189445935,-300.596,0.00023951,2]
[332446265,1721189445949,-152.38095238,0.00023958,2]
[332446266,1721189445961,-837.82,0.0002398,2]
[332446267,1721189445975,-1300.77,0.0002398,2]
[332446268,1721189445990,-1927.92209274,0.00023999,2]
[332446269,1721189446002,-366.44735947,0.00023999,2]
[332446270,1721189446015,-210.11352685,0.00024,2]
[332446271,1721189446028,-1800.0,0.00024,25]
[332446272,1721189446040,-2389.43925484,0.00024,30]
[332446273,1721189446053,-1138.22096,0.00024,2]
[332446276,1721189446066,-151.76006347,0.00024037,2]
[332446277,1721189446078,-160.18351277,0.00024046,2]
[332446279,1721189446091,-152.38095238,0.00024059,2]
[332446281,1721189446104,-202.0,0.000241,2]
[332446282,1721189446116,-325.28274957,0.00024103,2]
[332446283,1721189446129,-166.71,0.0002411,2]
[332446284,1721189446141,-151.94736869,0.00024123,2]
[332446285,1721189446154,-3000.0,0.0002413,4]
[332446286,1721189446168,-282.49712453,0.00024148,2]
[332446287,1721189446181,-150.86922992,0.00024178,2]
[332446288,1721189446195,-151.94736869,0.00024189,2]
[332446289,1721189446207,-282.49712453,0.00024195,2]
[332446290,1721189446220,-151.94736869,0.00024204,2]
[332446291,1721189446233,-150.0,0.00024225,2]
[332446292,1721189446246,-222.78721591,0.00024228,2]
[332446293,1721189446260,-20000.0,0.00024231,3]
[332446294,1721189446273,-173.0,0.00024255,2]
[332446295,1721189446286,-578.44312975,0.00024264,2]
[332446296,1721189446299,-325.28274957,0.00024269,2]
[332446297,1721189446311,-161.93044894,0.00024326,2]
[332446298,1721189446324,-166.66666668,0.00024382,2]
[332446299,1721189446338,-532795.94727947,0.0002444,2]
[332446300,1721189446350,-150.0,0.0002445,4]
[332446301,1721189446363,-157.39515502,0.00024476,2]
[332446302,1721189446376,-282.49712453,0.00024581,2]
[332446303,1721189446390,-151.97548656,0.00024613,2]
[332446304,1721189446403,-318.32,0.0002462,2]
[332446305,1721189446416,-500.0,0.00024657,2]
[332446306,1721189446431,-816.14,0.00024657,2]
[332446307,1721189446444,-500.0,0.00024657,2]
[332446308,1721189446457,-500.0,0.00024657,2]
[332446309,1721189446470,-500.0,0.00024657,2]
[332446310,1721189446483,-500.0,0.00024657,2]
[332446311,1721189446496,-500.0,0.00024657,2]
[332446312,1721189446509,-500.0,0.00024657,2]
[332446313,1721189446522,-500.0,0.00024657,2]
[332446314,1721189446535,-500.0,0.00024657,2]
[332446315,1721189446548,-500.0,0.00024657,2]
[332446316,1721189446560,-500.0,0.00024657,2]
[332446317,1721189446573,-567.106025,0.00024658,7]
[332446318,1721189446587,-567.106025,0.00024658,7]
[332446319,1721189446601,-151.0,0.00024658,7]
[332446320,1721189446614,-282.49712453,0.00024699,2]
[332446321,1721189446627,-231.80658898,0.000247,2]
[332446322,1721189446640,-387.56629976,0.00024702,2]
[332446323,1721189446653,-325.28274957,0.00024711,2]
[332446324,1721189446666,-500.0,0.00024712,2]
[332446325,1721189446684,-816.14,0.00024712,2]
[332446326,1721189446696,-500.0,0.00024712,2]
[332446327,1721189446710,-500.0,0.00024712,2]
[332446328,1721189446723,-500.0,0.00024712,2]
[332446329,1721189446736,-500.0,0.00024712,2]
[332446330,1721189446748,-500.0,0.00024712,2]
[332446331,1721189446761,-500.0,0.00024712,2]
[332446332,1721189446774,-500.0,0.00024712,2]
[332446333,1721189446787,-578.44312975,0.00024716,2]
[332446334,1721189446800,-155.11036895,0.00024722,2]
[332446335,1721189446813,-151.29511776,0.00024734,2]
[332446336,1721189446826,-155.367607,0.00024748,2]
[332446337,1721189446839,-172.630675,0.00024748,2]
[332446338,1721189446852,-203.008575,0.00024748,2]
[332446339,1721189446865,-164.151634,0.00024748,2]
[332446340,1721189446877,-169.773663,0.00024748,2]
[332446341,1721189446891,-160.066393,0.00024748,2]
[332446342,1721189446906,-196.2255,0.00024748,2]
[332446343,1721189446922,-383.365333,0.00024748,2]
[332446344,1721189446935,-166.719869,0.00024748,2]
[332446345,1721189446946,-198.335201,0.00024748,2]
[332446346,1721189446955,-154.479845,0.00024748,2]
[332446347,1721189446964,-181.539328,0.00024748,2]
[332446348,1721189446975,-253.089089,0.00024748,2]
[332446349,1721189446985,-300.165308,0.00024748,2]
[332446350,1721189446995,-214.340617,0.00024748,2]
[332446351,1721189447005,-179.055073,0.00024748,2]
[332446352,1721189447014,-184.634243,0.00024748,2]
[332446353,1721189447205,-179.055073,0.00024748,2]
[332446354,1721189447303,-184.634242,0.00024748,2]
[332446355,1721189447316,-190.273325,0.00024748,2]
[332446356,1721189447326,-228.641867,0.00024748,2]
[332446357,1721189447335,-169.279736,0.00024748,2]
[332446358,1721189447344,-266.800636,0.00024748,2]
[332446359,1721189447354,-165.45918,0.00024748,2]
[332446360,1721189447363,-150.762749,0.00024748,2]
[332446361,1721189447372,-158.144304,0.00024748,2]
[332446362,1721189447381,-158.089606,0.00024748,2]
[332446363,1721189447390,-169.279738,0.00024748,2]
[332446364,1721189447399,-154.891049,0.00024748,2]
[332446365,1721189447408,-175.939967,0.00024748,2]
[332446366,1721189447417,-178.625946,0.00024748,2]
[332446367,1721189447427,-179.704062,0.00024748,2]
[332446368,1721189447436,-552.587787,0.00024748,2]
[332446369,1721189447445,-559.554572,0.00024748,2]
[332446370,1721189447455,-184.569374,0.00024748,2]
[332446371,1721189447464,-176.865092,0.00024748,2]
[332446372,1721189447473,-170.29919,0.00024748,2]
[332446373,1721189447482,-500.0,0.00024767,2]
[332446374,1721189447491,-816.14,0.00024767,2]
[332446375,1721189447500,-375.39726976,0.00024767,2]
[332446376,1721189447510,-155.17415961,0.0002477,2]
[332446377,1721189447518,-151.94736869,0.00024796,2]
[332446378,1721189447527,-350.0,0.000248,2]
[332446379,1721189447536,-150.0,0.00024802,2]
[332446380,1721189447545,-528.43068905,0.0002481,2]
[332446381,1721189447554,-325.28274957,0.00024815,2]
[332446382,1721189447563,-500.0,0.00024821,2]
[332446383,1721189447572,-816.14,0.00024821,2]
[332446384,1721189447581,-150.62825954,0.00024845,2]
[332446385,1721189447590,-500.0,0.00024876,2]
[332446386,1721189447599,-816.14,0.00024876,2]
[332446387,1721189447608,-175.70923073,0.000249,2]
[332446388,1721189447617,-155.11036895,0.00024922,2]
[332446389,1721189447626,-500.0,0.00024931,2]
[332446390,1721189447636,-816.14,0.00024931,2]
[332446391,1721189447645,-500.0,0.00024935,2]
[332446392,1721189447654,-500.0,0.00024935,2]
[332446393,1721189447663,-500.0,0.00024935,2]
[332446394,1721189447674,-500.0,0.00024935,2]
[332446395,1721189447684,-500.0,0.00024935,2]
[332446396,1721189447693,-501.55532321,0.00024935,2]
[332446397,1721189447702,-151.76006347,0.00024944,2]
[332446398,1721189447711,-315.97745434,0.00024945,2]
[332446399,1721189447720,-152.30468228,0.00024977,2]
[332446400,1721189447729,-2533.7364692,0.00024983,2]
[332446401,1721189447738,-1922.3600295,0.00024983,2]
[332446402,1721189447747,-1310.9835899,0.00024983,2]
[332446403,1721189447756,-1403.6236038,0.00024983,2]
[332446404,1721189447765,-1064.9370782,0.00024983,2]
[332446405,1721189447775,-726.2505526,0.00024983,2]
[332446406,1721189447785,-500.0,0.00024986,2]
[332446407,1721189447794,-816.14,0.00024986,2]
[332446408,1721189447803,-225.6805486,0.00025,2]
[332446409,1721189447812,-932.44572519,0.00025,2]
[332446410,1721189447822,-527.40362178,0.00025,2]
[332446411,1721189447831,-155.0,0.00025,2]
[332446412,1721189447840,-2874.22113812,0.00025,2]
[332446413,1721189447851,-326.50016736,0.00025,2]
[332446414,1721189447862,-3291.45348491,0.00025,4]
[332446415,1721189447872,-273.38369986,0.00025,2]
[332446416,1721189447882,-1790.55991509,0.00025,14]
[332446417,1721189447892,-154.991791,0.00025,2]
[332446418,1721189447905,-1800.0,0.00025,26]
[332446419,1721189447914,-381.01003167,0.00025,2]
[332446420,1721189447925,-2311.38118011,0.00025,30]
[332446421,1721189447935,-2948.1485804,0.00025,30]
[332446422,1721189447945,-1288.77244507,0.00025,30]
[332446423,1721189447954,-390222.0830109,0.00025,2]
[332446424,1721189448000,-262951.28200962,0.00025,2]
[332446425,1721189448011,-78896.43625104,0.00025,2]
[332446426,1721189448022,-780.91995284,0.00025,2]
[332446427,1721189448038,-183007.31009354,0.00025,2]
[332446428,1721189448047,-27247.87136751,0.00025,7]
[332446429,1721189448056,-2458.05266836,0.00025,2]
[332446430,1721189448065,-550.0,0.00025,2]
[332446431,1721189448075,-151.949031,0.00025,7]
[332446432,1721189448085,-151.0,0.00025,7]
[332446433,1721189448094,-151.0,0.00025,7]
[332446434,1721189448104,-154.105399,0.00025,7]
[332446435,1721189448113,-151.0,0.00025,7]
[332446436,1721189448122,-295.667325,0.00025,7]
[332446437,1721189448131,-151.0,0.00025,7]
[332446438,1721189448141,-1257.157437,0.00025,7]
[332446439,1721189448150,-153.459932,0.00025,7]
[332446440,1721189448159,-1257.157437,0.00025,7]
[332446441,1721189448168,-151.0,0.00025,7]
[332446442,1721189448179,-164.410634,0.00025,7]
[332446443,1721189448188,-164.410634,0.00025,7]
[332446444,1721189448197,-151.0,0.00025,7]
[332446445,1721189448207,-567.106025,0.00025,7]
[332446446,1721189448216,-567.106025,0.00025,7]
[332446447,1721189448225,-151.0,0.00025,7]
[332446448,1721189448234,-202.728221,0.00025,7]
[332446449,1721189448243,-276.853168,0.00025,7]
[332446450,1721189448252,-202.728221,0.00025,7]
[332446451,1721189448262,-151.0,0.00025,7]
[332446452,1721189448272,-152.675661,0.00025,7]
[332446453,1721189448282,-151.0,0.00025,7]
[332446454,1721189448291,-151.0,0.00025,7]
[332446455,1721189448301,-153.227423,0.00025,7]
[332446456,1721189448310,-151.0,0.00025,7]
[332446457,1721189448319,-151.0,0.00025,7]
[332446458,1721189448329,-151.0,0.00025,7]
[332446459,1721189448337,-151.0,0.00025,7]
[332446460,1721189448345,-151.0,0.00025,7]
[332446461,1721189448354,-200.0,0.00025,2]
[332446462,1721189448363,-551.09449,0.00025,7]
[332446463,1721189448373,-551.09449,0.00025,7]
[332446464,1721189448382,-551.09449,0.00025,7]
[332446465,1721189448392,-551.09449,0.00025,7]
[332446466,1721189448402,-151.0,0.00025,7]
[332446467,1721189448411,-151.0,0.00025,7]
[332446468,1721189448422,-151.0,0.00025,7]
[332446469,1721189448433,-151.0,0.00025,7]
[332446470,1721189448442,-151.0,0.00025,7]
[332446471,1721189448452,-174.615692,0.00025,7]
[332446472,1721189448461,-197.022907,0.00025,7]
[332446473,1721189448471,-151.0,0.00025,7]
[332446474,1721189448480,-197.022907,0.00025,7]
[332446475,1721189448490,-151.0,0.00025,7]
[332446476,1721189448499,-151.0,0.00025,7]
[332446477,1721189448509,-151.0,0.00025,7]
[332446478,1721189448518,-151.0,0.00025,7]
[332446479,1721189448528,-209.8828,0.00025,7]
[332446480,1721189448537,-151.0,0.00025,7]
[332446481,1721189448546,-151.0,0.00025,7]
[332446482,1721189448556,-317.846882,0.00025,6]
[332446483,1721189448566,-151.0,0.00025,7]
[332446484,1721189448575,-151.0,0.00025,7]
[332446485,1721189448584,-1462.169592,0.00025,7]
[332446486,1721189448594,-151.0,0.00025,7]
[332446487,1721189448604,-1462.169592,0.00025,7]
[332446488,1721189448613,-151.0,0.00025,7]
[332446489,1721189448622,-187.713105,0.00025,7]
[332446490,1721189448632,-187.713105,0.00025,7]
[332446491,1721189448641,-153.065367,0.00025,7]
[332446492,1721189448651,-151.0,0.00025,7]
[332446493,1721189448661,-151.0,0.00025,7]
[332446494,1721189448670,-155.049459,0.00025,7]
[332446495,1721189448684,-1011.568587,0.00025,7]
[332446496,1721189448694,-1011.568587,0.00025,7]
[332446497,1721189448703,-1011.568587,0.00025,7]
[332446498,1721189448713,-1011.568587,0.00025,7]
[332446499,1721189448722,-151.0,0.00025,7]
[332446500,1721189448731,-151.0,0.00025,7]
[332446501,1721189448741,-151.0,0.00025,7]
[332446502,1721189448750,-182.330901,0.00025,7]
[332446503,1721189448759,-375.227327,0.00025,7]
[332446504,1721189448768,-151.602781,0.00025,7]
[332446505,1721189448778,-375.227327,0.00025,7]
[332446506,1721189448786,-375.227327,0.00025,7]
[332446507,1721189448796,-375.227327,0.00025,7]
[332446508,1721189448805,-151.0,0.00025,7]
[332446509,1721189448814,-151.0,0.00025,7]
[332446510,1721189448824,-151.0,0.00025,7]
[332446511,1721189448833,-151.0,0.00025,7]
[332446512,1721189448843,-197.573092,0.00025,7]
[332446513,1721189448852,-197.573092,0.00025,7]
[332446514,1721189448862,-152.38095238,0.0002501,2]
[332446515,1721189448871,-151.76006347,0.00025017,2]
[332446516,1721189448881,-151.76006347,0.00025018,2]
[332446517,1721189448891,-500.0,0.00025041,2]
[332446518,1721189448903,-816.14,0.00025041,2]
[332446519,1721189448913,-155.367607,0.00025058,2]
[332446520,1721189448926,-203.008575,0.00025058,2]
[332446521,1721189448937,-383.365333,0.00025058,2]
[332446522,1721189448947,-300.165308,0.00025058,2]
[332446523,1721189448958,-175.939967,0.00025058,2]
[332446524,1721189448968,-552.587787,0.00025058,2]
[332446525,1721189448979,-559.554572,0.00025058,2]
[332446526,1721189448989,-282.49712453,0.0002506,2]
[332446527,1721189448998,-387.56629976,0.0002506,2]
[332446528,1721189449008,-325.28274957,0.00025064,2]
[332446529,1721189449017,-1011.16,0.0002507,2]
[332446530,1721189449027,-500.0,0.00025095,2]
[332446531,1721189449036,-816.14,0.00025095,2]
[332446532,1721189449045,-3198.36460654,0.000251,2]
[332446533,1721189449054,-564.79232202,0.000251,120]
[332446534,1721189449066,-1835.20767798,0.000251,120]
[332446535,1721189449076,-161.51706992,0.00025137,2]
[332446536,1721189449086,-66.4163321,0.00025139,2]
[332446537,1721189450260,-227.39291056,0.00014966,2]
[332446538,1721189450270,-225.88910423,0.00016172,2]
[332446539,1721189450279,-155.56400494,0.00016315,2]
[332446540,1721189450289,-561.32908892,0.00019565,2]
[332446541,1721189450298,-197.573092,0.00021985,7]
[332446542,1721189450307,-197.573092,0.00025,7]
[332446543,1721189450316,-197.573092,0.00025,7]
[332446544,1721189450325,-192.9034469,0.00025139,2]
[332446545,1721189450334,-325.28274957,0.00025149,2]
[332446546,1721189450343,-500.0,0.0002515,2]
[332446547,1721189450353,-816.14,0.0002515,2]
[332446548,1721189450362,-200.573155,0.00025159,2]
[332446549,1721189450371,-500.0,0.0002516,120]
[332446550,1721189450380,-164.151634,0.00025161,2]
[332446551,1721189450389,-176.865092,0.00025161,2]
[332446552,1721189450398,-202.0,0.0002517,2]
[332446553,1721189450406,-150.62825954,0.00025189,2]
[332446554,1721189450416,-222.78721591,0.00025201,2]
[332446555,1721189450425,-500.0,0.00025205,2]
[332446556,1721189450434,-816.14,0.00025205,2]
[332446557,1721189450443,-222.78721591,0.00025205,2]
[332446558,1721189450452,-1000.0,0.00025205,2]
[332446559,1721189450461,-151.0,0.00025218,2]
[332446560,1721189450470,-250.49088,0.00025218,2]
[332446561,1721189450479,-500.0,0.0002526,2]
[332446562,1721189450488,-816.14,0.0002526,2]
[332446563,1721189450497,-151.97548656,0.00025274,2]
[332446564,1721189450507,-151.76006347,0.00025299,2]
[332446565,1721189450516,-280.0,0.000253,10]
[332446566,1721189450525,-500.0,0.00025315,2]
[332446567,1721189450534,-816.14,0.00025315,2]
[332446568,1721189450543,-155.9383458,0.00025319,2]
[332446569,1721189450553,-222.78721591,0.00025326,2]
[332446570,1721189450562,-150.62825954,0.00025353,2]
[332446571,1721189450571,-155.367607,0.00025367,2]
[332446572,1721189450579,-203.008575,0.00025367,2]
[332446573,1721189450588,-383.365333,0.00025367,2]
[332446574,1721189450597,-300.165308,0.00025367,2]
[332446575,1721189450607,-175.939967,0.00025367,2]
[332446576,1721189450616,-552.587787,0.00025367,2]
[332446577,1721189450625,-559.554572,0.00025367,2]
[332446578,1721189450634,-172.630675,0.00025367,2]
[332446579,1721189450643,-169.773663,0.00025367,2]
[332446580,1721189450652,-166.719869,0.00025367,2]
[332446581,1721189450661,-154.479845,0.00025367,2]
[332446582,1721189450671,-184.634243,0.00025367,2]
[332446583,1721189450682,-190.273325,0.00025367,2]
[332446584,1721189450691,-165.45918,0.00025367,2]
[332446585,1721189450700,-500.0,0.00025369,2]
[332446586,1721189450709,-816.14,0.00025369,2]
[332446587,1721189450719,-150.0,0.00025379,2]
[332446588,1721189450728,-166.66666667,0.00025379,2]
[332446589,1721189450737,-325.28274957,0.00025398,2]
[332446590,1721189450747,-1380.61,0.00025415,7]
[332446591,1721189450757,-1380.61,0.00025415,7]
[332446592,1721189450767,-1380.61,0.00025415,7]
[332446593,1721189450776,-1380.61,0.00025415,7]
[332446594,1721189450785,-500.0,0.00025424,2]
[332446595,1721189450794,-816.14,0.00025424,2]
[332446596,1721189450803,-282.49712453,0.00025445,2]
[332446597,1721189450813,-935.21386278,0.00025452,2]
[332446598,1721189450822,-259.319779,0.00025453,2]
[332446599,1721189450831,-500.0,0.00025479,2]
[332446600,1721189450840,-816.14,0.00025479,2]
[332446601,1721189450850,-166.66666668,0.00025529,2]
[332446602,1721189450859,-621.73974645,0.00025534,2]
[332446603,1721189450868,-816.14,0.00025534,2]
[332446604,1721189450877,-166.66666667,0.00025538,2]
[332446605,1721189450886,-318.32,0.0002554,2]
[332446606,1721189450897,-181.78021233,0.00025552,2]
[332446607,1721189450910,-157.39515502,0.00025553,2]
[332446608,1721189450919,-166.66666666,0.00025561,2]
[332446609,1721189450930,-164.151634,0.00025573,2]
[332446610,1721189450940,-176.865092,0.00025573,2]
[332446611,1721189450949,-166.36401292,0.00025581,2]
[332446612,1721189450959,-155.17415961,0.00025582,2]
[332446613,1721189450968,-816.14,0.00025589,2]
[332446614,1721189450978,-151.40847592,0.00025612,2]
[332446615,1721189450987,-152.38095238,0.00025624,2]
[332446616,1721189450996,-302.0,0.00025642,4]
[332446617,1721189451006,-816.14,0.00025643,2]
[332446618,1721189451015,-591.35,0.0002565,2]
[332446619,1721189451025,-65.45488687,0.0002566,120]
[332446620,1721189451629,-155.0,0.00014849,2]
[332446621,1721189451638,-250.0,0.00019817,2]
[332446622,1721189451647,-102.85658913,0.0002566,120]
[332446623,1721189451656,-155.367607,0.00025676,2]
[332446624,1721189451666,-203.008575,0.00025676,2]
[332446625,1721189451675,-383.365333,0.00025676,2]
[332446626,1721189451685,-300.165308,0.00025676,2]
[332446627,1721189451694,-175.939967,0.00025676,2]
[332446628,1721189451703,-552.587787,0.00025676,2]
[332446629,1721189451712,-559.554572,0.00025676,2]
[332446630,1721189451721,-1380.61,0.00025689,7]
[332446631,1721189451729,-1380.61,0.00025689,7]
[332446632,1721189451738,-399.82783366,0.00025698,2]
[332446638,1721189956762,4000.0,0.0002,30]
[332446641,1721190486036,10775.20692586,0.0001,2]
[332446642,1721190512778,11966.04898114,0.00012,30]
[332446669,1721190631417,-733.02076281,0.00011097,2]
[332446671,1721190631428,-2268.26683025,0.00011097,2]
[332446674,1721190631481,-900.0,0.00011097,2]
[332446675,1721190631541,-1235.05006427,0.00011097,2]
[332446676,1721190631604,-1793.35062138,0.00011097,2]
[332446677,1721190631615,-1224.61140541,0.00011097,2]
[332446678,1721190631624,-3.50341492,0.00012,2]
[332446679,1721190631662,-445.21085273,0.00012,2]
[332446680,1721190631671,-300.0,0.00012589,2]
[332446681,1721190631680,-851.98819484,0.0001259,2]
[332446682,1721190631691,-521.85362657,0.0001259,2]
[332446693,1721190637717,-323.54355922,0.0001259,2]
[332446694,1721190637727,-250.0,0.00013,2]
[332446695,1721190637736,-420.0,0.00013812,2]
[332446696,1721190637745,-17.38455393,0.00013899,2]
[332446698,1721190637774,-584.18504825,0.00013899,2]
[332446700,1721190637782,-1024.0,0.000139,2]
[332446702,1721190637792,-783.15540617,0.000139,2]
[332446704,1721190637802,-441.05046636,0.000139,2]
[332446706,1721190637811,-1224.20587253,0.000139,2]
[332446708,1721190637820,-275.67465936,0.00013989,2]
[332446710,1721190637829,-156.26122475,0.00013989,2]
[332446712,1721190637838,-150.0,0.00013998,2]
[332446714,1721190637847,-194.60411318,0.00013999,2]
[332446716,1721190637858,-5672.26661512,0.00013999,2]
[332446718,1721190637867,-315.97745434,0.00013999,2]
[332446720,1721190637876,-568.75031382,0.00013999,2]
[332446722,1721190637885,-227.92586719,0.00013999,2]
[332446724,1721190637894,-415.66661807,0.00014,2]
[332446726,1721190637906,-1869.7443923,0.00014,2]
[332446729,1721190637927,-1063.62414582,0.00014,2]
[332446732,1721190637939,-488.83387051,0.00014,2]
[332446734,1721190637950,-103578.31153136,0.00014,2]
[332446736,1721190637964,-4323.89248772,0.00014,2]
[332446739,1721190637976,-1168.91354638,0.00014,2]
[332446741,1721190637987,-1659.99434364,0.00014,2]
[332446743,1721190637998,-2040.00565636,0.00014,2]
[332446745,1721190638010,-7272.65439133,0.00014,2]
[332446748,1721190638029,-1119.49986833,0.00014,2]
[332446752,1721190638062,-847652.78216643,0.00014,2]
[332446902,1721190639486,-191303.23741674,0.00014,2]
[332446905,1721190639497,-924.899999,0.00014,2]
[332446907,1721190639509,-1642.8995,0.00014,2]
[332446913,1721190639547,-496.07624443,0.00014,2]
[332446920,1721190639606,-488.5902532,0.00014,2]
[332446927,1721190639664,-1221.64794699,0.00014,2]
[332446929,1721190639674,-41167.66283741,0.00014,2]
[332446931,1721190639686,-173700.62690797,0.00014,2]
[332446933,1721190639697,-133962.65736628,0.00014,2]
[332446936,1721190639708,-1114.0517262,0.00014,2]
[332446938,1721190639719,-504.74247084,0.00014,2]
[332446941,1721190639743,-1014.07476199,0.00014,2]
[332446993,1721190640235,-12077.98367184,0.00014,2]
[332446999,1721190640295,-488.02206843,0.00014,2]
[332447006,1721190640352,-1131.59228596,0.00014,2]
[332447019,1721190640468,-74839.09920751,0.00014,2]
[332447022,1721190640487,-134367.21758748,0.00014,2]
[332447025,1721190640505,-405.40376642,0.00014,2]
[332447212,1721190642568,-1028.61927834,0.00013999,2]
[332447213,1721190642582,-54040.88865227,0.00014,2]
[332447214,1721190642598,-6584.2221912,0.00014,2]
[332447215,1721190642625,-853.02521005,0.00014,2]
[332447216,1721190642845,-13289.23339859,0.00014,2]
[332447217,1721190642907,-572.21,0.00014,2]
[332447221,1721190645489,-3963.32370779,0.00014,2]
[332447222,1721190645542,-11952.13555836,0.00014,2]
[332447223,1721190645605,-1414.13344301,0.00014,2]
[332447224,1721190645619,-10344.611928,0.00014,2]
[332447225,1721190645781,-65254.09182587,0.00014,2]
[332447232,1721191367886,-1256.95093194,0.00011098,2]
[332447233,1721191367907,-209.07691188,0.00013516,2]
[332447234,1721191367928,-155.20847491,0.00013543,2]
[332447235,1721191367947,-255.76209991,0.00013543,2]
[332447236,1721191367967,-417.93936495,0.00013757,2]
[332447237,1721191367986,-165.03667698,0.0001389,2]
[332447238,1721191368006,-300.0,0.00013899,2]
[332447239,1721191368026,-150.0,0.00013899,2]
[332447240,1721191368046,-6502.6672,0.000139,2]
[332447241,1721191368066,-13439.73,0.000139,2]
[332447242,1721191368086,-326.2628,0.000139,2]
[332447243,1721191368106,-450.2674,0.000139,2]
[332447244,1721191368126,-503.32673581,0.000139,2]
[332447245,1721191368147,-2023.48037548,0.000139,2]
[332447246,1721191368166,-886.5729,0.000139,2]
[332447247,1721191368186,-173.05043953,0.000139,2]
[332447248,1721191368206,-998.93537444,0.000139,2]
[332447249,1721191368226,-1059.91940448,0.000139,2]
[332447250,1721191368246,-165.03667697,0.000139,2]
[332447251,1721191368266,-17160.65509095,0.000139,2]
[332447252,1721191368286,-333.76746171,0.0001399,2]
[332447253,1721191368306,-1073.46,0.0001399,2]
[332447254,1721191368326,-279.48904405,0.0001399,2]
[332447255,1721191368346,-2028.81,0.0001399,2]
[332447256,1721191368366,-2028.81,0.0001399,2]
[332447257,1721191368386,-2028.81,0.0001399,2]
[332447258,1721191368405,-2028.81,0.0001399,2]
[332447259,1721191368425,-2028.81,0.0001399,2]
[332447260,1721191368448,-1968469.35463601,0.00014,2]
[332447261,1721191418096,-783.04921338,0.00012302,2]
[332447262,1721191418117,-12655.9032,0.000137,2]
[332447263,1721191418138,-1380.9266,0.000139,2]
[332447264,1721191418160,-25511.0816418,0.0001399,2]
[332447265,1721191418184,-1381669.03934482,0.00014,2]